Cogmind - Beta 9.3 *** ADVENTURER MODE // 2020.01.02 @ 14:22:21 // Winter2019/RPGLIKE Player: DanielJ Result: Destroyed by 8R-AWN with 8R-AWN's Boregun Performance ------------- Evolutions (0) 0 Regions Visited (3) 600 Robots Destroyed (6) 30 Value Destroyed (168) 168 Prototype IDs (22) 440 Alien Tech Used (0) 0 Bonus (249) 249 TOTAL SCORE: 1487 Bonus ------- Aligned with FarCom 300 Friendly Fire -51 Cogmind --------- Core Integrity 0/600 Matter 273/300 Energy 250/250 System Corruption 0% Temperature Cool (74) Movement Walking (120) Location -10/Exiles Parts ------- > --- POWER (1) -------- Ion Engine > --- PROPULSION (3) --- Aluminum Leg Aluminum Leg > --- UTILITY (3) ------ Improved Heat Sink > --- WEAPON (2) ------- Particle Gun Light Assault Rifle > --- INVENTORY (2) ---- (None) Peak State ------------ > --- POWER ------------ Ion Engine > --- PROPULSION ------- Aluminum Leg Aluminum Leg > --- UTILITY ---------- Improved Heat Sink > --- WEAPON ----------- Particle Gun Light Assault Rifle > --- INVENTORY -------- (None) [Rating: 9] Favorites ----------- Power Ion Engine Engine Ion Engine Propulsion Aluminum Leg Leg Aluminum Leg Utility Improved Heat Sink Device Improved Heat Sink Weapon Light Assault Rifle Energy Gun Particle Gun Ballistic Gun Light Assault Rifle Build | -11 -10 -10 -10 ------- Run | Scr Mat Min Exi Slots Evolved 5 | 5 . . . Power . | . . . . Propulsion 2 | 2 . . . Utility 2 | 2 . . . Weapon 1 | 1 . . . Parts Attached 7 | 5 2 . . Power 1 | 1 . . . Engine 1 | 1 . . . Core . | . . . . Reactor . | . . . . Propulsion 2 | 2 . . . Treads . | . . . . Leg 2 | 2 . . . Wheel . | . . . . Hover . | . . . . Flight . | . . . . Utility 1 | . 1 . . Device 1 | . 1 . . Storage . | . . . . Processor . | . . . . Hackware . | . . . . Protection . | . . . . Artifact . | . . . . Weapon 3 | 2 1 . . Energy Gun 1 | . 1 . . Energy Cannon . | . . . . Ballistic Gun 2 | 2 . . . Ballistic Cannon . | . . . . Launcher . | . . . . Special Weapon . | . . . . Impact Weapon . | . . . . Slashing Weapon . | . . . . Piercing Weapon . | . . . . Special Melee Weapon . | . . . . Unidentified Prototypes . | . . . . Parts Lost . | . . . . Power . | . . . . Propulsion . | . . . . Utility . | . . . . Weapon . | . . . . Highest Loss Streak . | . . . . Average Slot Usage (%) 65 | . 62 66 66 Engine 11 | . 11 11 11 Leg 22 | . 22 22 22 Device 10 | . 7 11 11 Energy Gun 10 | . 8 11 11 Ballistic Gun 11 | . 13 11 11 Naked Turns . | . . . . Heaviest Build 10 | 7 10 10 10 Greatest Support 20 | 20 20 20 20 Greatest Overweight (x) . | . . . . Average Overweight (x) . | . . . . Largest Inventory Capacity 2 | 2 2 2 2 Average Capacity 2 | 2 2 2 2 Most Carried . | . . . . Average Carried . | . . . . Final Capacity 2 | 2 2 2 2 Final Carried . | . . . . Class Distribution -------------------- 100% | Mutant Dominant Class ---------------- Mutant | -10/Materials Mutant | -10/Mines Mutant | -10/Exiles Resources | -11 -10 -10 -10 ----------- Run | Scr Mat Min Exi Matter Collected 278 | 189 63 26 . Remotely . | . . . . Salvage Created 203 | 91 112 . . Parts 6 | 2 4 . . Haulers Intercepted . | . . . . Recyclers Shooed . | . . . . Parts Field Recycled . | . . . . Retrieved Matter . | . . . . Parts Self-Destructed . | . . . . Prevented . | . . . . Kills | -11 -10 -10 -10 ------- Run | Scr Mat Min Exi Combat Hostiles Destroyed 5 | . 4 . 1 Guns 5 | . 4 . 1 Classes Destroyed 3 | 1 1 . 1 Recycler 1 | 1 . . . Grunt 4 | . 4 . . Assembled 1 | . . . 1 Best Kill Streak 2 | 1 2 . 1 Combat Bots Only 2 | . 2 . 1 Max Kills in Single Turn 1 | 1 1 . 1 Gunslinging . | . . . . Exploded . | . . . . Melee . | . . . . Uniques/NPCs Destroyed . | . . . . Combat | -11 -10 -10 -10 -------- Run | Scr Mat Min Exi Damage Taken 852 | . 108 . 744 Core 694 | . 87 . 607 Absorbed by Shields . | . . . . Redirected to Core 524 | . 67 . 457 Core Remaining (%) 100 | 100 . . . Volleys Fired 29 | 2 11 1 15 Largest 2 | 2 2 2 2 Hottest 85 | 40 85 85 85 Shots Fired 57 | 4 21 2 30 Gun 57 | 4 21 2 30 Cannon . | . . . . Launcher . | . . . . Special . | . . . . Kinetic 35 | 4 15 1 15 Thermal 22 | . 6 1 15 Explosive . | . . . . Electromagnetic . | . . . . Robot Hit Streak 22 | 4 17 . 22 Robot Miss Streak 1 | . 1 . 1 Penetration Max . | . . . . Secondary Targets 1 | . 1 . . Max Gunslinging Chain 1 | . 1 . . Shots Hit Robots 45 | 4 20 . 21 Core Hits 22 | 2 12 . 8 Critical Hits . | . . . . Critical Kills . | . . . . Critical Parts Destroyed . | . . . . Melee Attacks . | . . . . Impact . | . . . . Slashing . | . . . . Piercing . | . . . . Sneak Attacks . | . . . . Combat Hostiles . | . . . . Follow-up Attacks . | . . . . Damage Inflicted 424 | 30 198 21 175 Guns 424 | 30 198 21 175 Cannons . | . . . . Explosions . | . . . . Melee . | . . . . Ramming . | . . . . Kinetic 246 | 30 119 8 89 Thermal 178 | . 79 13 86 Explosive . | . . . . Electromagnetic . | . . . . Impact . | . . . . Slashing . | . . . . Piercing . | . . . . Highest Corruption . | . . . . Average Corruption . | . . . . Corruption Purged . | . . . . Overload Shots . | . . . . Overflow Damage . | . . . . Projectiles . | . . . . Explosions . | . . . . Melee . | . . . . Knockbacks . | . . . . Impact . | . . . . Kinetic . | . . . . Secondary . | . . . . Self-Inflicted Damage . | . . . . Shots . | . . . . Rammed . | . . . . Targets Rammed . | . . . . Kicked . | . . . . Crushed . | . . . . Highest Temperature 74 | . 50 16 74 Average Temperature 21 | . 21 12 21 Received Heat Transfer 221 | . 81 . 140 Siege Activations . | . . . . Robots Corrupted . | . . . . Combat Hostiles . | . . . . Parts Fried . | . . . . Impact Corruptions . | . . . . Robots Melted . | . . . . Combat Hostiles . | . . . . Parts Melted . | . . . . Heat Transferred 461 | . 185 37 239 Parts Sabotaged . | . . . . Parts Stolen . | . . . . Parts Stripped . | . . . . Power Chain Reactions . | . . . . Missiles Intercepted . | . . . . Alert | -11 -10 -10 -10 ------- Run | Scr Mat Min Exi Peak Influence 102 | 5 102 33 . Average Influence 36 | . 57 33 . Maximum Alert Level . | . . . . Low Security (%) 100 | 100 100 100 . Level 1 . | . . . . Level 2 . | . . . . Level 3 . | . . . . Level 4 . | . . . . Level 5 . | . . . . High Security . | . . . . Max Security . | . . . . Squads Dispatched . | . . . . Investigation . | . . . . Extermination . | . . . . Reinforcement . | . . . . Assault . | . . . . Garrison . | . . . . Intercept . | . . . . Construction Impeded . | . . . . Haulers Reinforced . | . . . . Stealth | -11 -10 -10 -10 --------- Run | Scr Mat Min Exi Distress Signals 1 | . 1 . . Communications Jammed . | . . . . Distress Signals . | . . . . Times Spotted 13 | . 5 . 8 Peak Tracking Total 9 | . 3 . 9 Tactical Retreats . | . . . . Traps | -11 -10 -10 -10 ------- Run | Scr Mat Min Exi Traps Triggered . | . . . . Indirectly . | . . . . Trap Hack Attempts . | . . . . Triggered . | . . . . Disarmed . | . . . . Reprogrammed . | . . . . Reused . | . . . . Traps Extracted . | . . . . Installed . | . . . . Triggered . | . . . . Machines | -11 -10 -10 -10 ---------- Run | Scr Mat Min Exi Machines Disabled 1 | . . . 1 Max in Single Turn 1 | . . . 1 Machines Sabotaged . | . . . . Garrisons Compromised . | . . . . Overloaded Fab Kills . | . . . . Fab Network Shutdowns . | . . . . Hacking | -11 -10 -10 -10 --------- Run | Scr Mat Min Exi Machines Accessed 3 | . 1 . 2 Terminals 1 | . 1 . . Fabricators . | . . . . Repair Stations . | . . . . Recycling Units . | . . . . Scanalyzers . | . . . . Garrison Access . | . . . . Total Hacks 4 | . 2 . 2 Successful 2 | . . . 2 Failed 2 | . 2 . . Catastrophic . | . . . . Database Lockouts . | . . . . Manual 2 | . . . 2 Terminals 2 | . 2 . . Fabricators . | . . . . Repair Stations . | . . . . Recycling Units . | . . . . Scanalyzers . | . . . . Garrison Access . | . . . . Terminal Hacks 2 | . . . 2 Record 1 | . . . 1 EX-Prototype ID Bank 1 | . . . 1 Fabricator Hacks . | . . . . Repair Station Hacks . | . . . . Recycling Unit Hacks . | . . . . Scanalyzer . | . . . . Garrison Access Hacks . | . . . . Unauthorized Hacks . | . . . . Terminals . | . . . . Fabricators . | . . . . Repair Stations . | . . . . Recycling Units . | . . . . Scanalyzers . | . . . . Garrison Access . | . . . . Data Cores Recovered . | . . . . Used . | . . . . Hacking Detections 1 | . 1 . . Full Trace Events . | . . . . Feedback Events . | . . . . Feedback Blocked . | . . . . Robot Schematics Acquired . | . . . . Robots Built . | . . . . Matter . | . . . . Time . | . . . . Total Robot Build Rating . | . . . . Part Schematics Acquired . | . . . . Parts Built . | . . . . Matter . | . . . . Time . | . . . . Total Part Build Rating . | . . . . Parts Repaired . | . . . . Time . | . . . . Parts Recycled . | . . . . Recycled Matter . | . . . . Retrieved Matter . | . . . . Retrieved Components . | . . . . Parts Scanalyzed . | . . . . Part Schematics Acquired . | . . . . Parts Damaged . | . . . . Bothacking | -11 -10 -10 -10 ------------ Run | Scr Mat Min Exi Used RIF Installer . | . . . . Robots Hacked . | . . . . Non-combat . | . . . . Combat . | . . . . Robot Hacks Applied . | . . . . Relay Couplers Released . | . . . . Robots Rewired . | . . . . Allies Hacked . | . . . . Hacks Repelled . | . . . . Allies | -11 -10 -10 -10 -------- Run | Scr Mat Min Exi Total Allies 3 | . . 3 . Largest Group 3 | . . 3 2 Highest-Rated Group 72 | . . 72 41 Highest-Rated Ally 31 | . . 31 31 Total Orders . | . . . . Ally Attacks . | . . . . Total Damage . | . . . . Kills . | . . . . Allies Corrupted . | . . . . Allies Melted . | . . . . Intel | -11 -10 -10 -10 ------- Run | Scr Mat Min Exi Robot Analysis Total . | . . . . Derelict Logs Recovered . | . . . . Drone Launches . | . . . . Drone Recoveries . | . . . . Exploration | -11 -10 -10 -10 ------------- Run | Scr Mat Min Exi Turns Passed 1308 | 53 142 339 774 Spaces Moved 966 | 37 87 243 599 Core 5 | 5 . . . Treads . | . . . . Legs 961 | 32 87 243 599 Wheels . | . . . . Hover . | . . . . Flight . | . . . . Fastest Speed 50 | 50 120 120 120 Average Speed 119 | 110 120 120 120 Slowest Speed 120 | 120 120 120 120 Overloaded Moves . | . . . . Propulsion Burnouts . | . . . . Robots Hopped . | . . . . Cave-ins Triggered . | . . . . Exploration Rate (%) 45 | 4 25 63 89 Regions Visited 3 Branch Regions 2 Pre-discovered Areas . | . . . . Known Exits Taken . | . . . . Unknown Exits Taken 3 | 1 1 1 . Scrap Searched . | . . . . Spaces Dug . | . . . . Terrain Destroyed . | . . . . Melee . | . . . . Projectile . | . . . . AOE . | . . . . Actions | -11 -10 -10 -10 --------- Run | Scr Mat Min Exi Total 1065 | 43 106 288 628 Wait 58 | . . 44 14 Move 963 | 36 86 242 599 Hop . | . . . . Pick Up . | . . . . Fast Attach 7 | 5 2 . . Attach . | . . . . Detach . | . . . . Swap . | . . . . Drop 1 | . 1 . . Fire 29 | 2 11 1 15 Melee . | . . . . Ram . | . . . . Kick . | . . . . Crush . | . . . . Escape Stasis . | . . . . Rewire . | . . . . Trap . | . . . . Miscellaneous 7 | . 6 1 . Route ------- -11/Scrapyard -10/Materials -10/Mines (discovered 2 exits: [*Mat] / *Exi) -10/Exiles (discovered 2 exits: [*Min x2]) History --------- Turn | Location | Event 1 | -11/Scrapyard | Upgraded with Propulsion slot (x2) 1 | -11/Scrapyard | Upgraded with Utility slot (x2) 1 | -11/Scrapyard | Upgraded with Weapon slot (x1) 10 | -11/Scrapyard | Discovered new exit (range 16) 54 | -11/Scrapyard | Entered Materials 166 | -10/Materials | Met 8R-AWN 179 | -10/Materials | Discovered new exit (range 15) 196 | -10/Materials | Entered Mines 197 | -10/Mines | Followed 8R-AWN into the Mines 219 | -10/Mines | Discovered new exit (range 13) 292 | -10/Mines | Escorted by a lone wolf Derelict 318 | -10/Mines | Build established: Mutant 512 | -10/Mines | Discovered new exit (range 5) 535 | -10/Mines | Entered Exiles 535 | -10/Exiles | Accompanied by 3 allies 564 | -10/Exiles | Welcomed by 8R-AWN 565 | -10/Exiles | Led the pair of lost Derelicts to a safe place 611 | -10/Exiles | Met EX-HEX 645 | -10/Exiles | Met EX-BIN 660 | -10/Exiles | Aligned with FarCom system 661 | -10/Exiles | Given EX-Vault access code 690 | -10/Exiles | Opened EX-Vault 716 | -10/Exiles | Warned to stay clear of 0b10 Research branches 751 | -10/Exiles | Met EX-DEC 816 | -10/Exiles | Visited The Gauntlet 1003 | -10/Exiles | Discovered new exit (range 14) 1137 | -10/Exiles | Learned about 8R-AWN's background 1165 | -10/Exiles | Discovered new exit (range 15) 1279 | -10/Exiles | Attacked by the Exiles 1298 | -10/Exiles | Core integrity fell below 50% 1305 | -10/Exiles | Core integrity fell below 20% 1309 | -10/Exiles | Destroyed by 8R-AWN with 8R-AWN's Boregun Last Messages --------------- 01300_ Penetrated by HV Slug. 01300_ HV Slug penetrates Earth. 01300_ Penetrated by HV Slug. 01300_ HV Slug penetrates Earth. 01302_ Penetrated by HV Slug. 01302_ HV Slug penetrates Machine. 01302_ Machine disabled. 01302_ Penetrated by HV Slug. 01302_ HV Slug penetrates Wall. 01304_ Penetrated by HV Slug. 01304_ HV Slug penetrates Wall. 01304_ Penetrated by HV Slug. 01304_ HV Slug penetrates Wall. 01306_ Penetrated by HV Slug. 01306_ HV Slug penetrates Wall. 01306_ Penetrated by HV Slug. 01306_ HV Slug penetrates Wall. 01309_ Penetrated by HV Slug. 01309_ HV Slug penetrates Wall. 01309_ Penetrated by HV Slug. Map ----- +----------------------------------------------------+ | """"#????????????????????????????????????????????? | | """"#????????????????????????????????????????????? | | """"#????????????????????????????????????????????? | | """"#????????????????????????????????????????????? | | """#????????????????????????????????????????????? | | """#????????????????????????????????????????????? | | """#????????????????????????????????????????????? | | """#????????????????????????????????????????????? | | """##???????????????????????????????????????????? | | """""???????????????????????????????????????????? | | """##???????????????????????????????????????????? | | """""???????????????????????????????????????????? | | #????????????????????????????????????????????? | | """"#????????????????????????????????????????????? | | #####???????????????????????????????????????????## | | ???????????????????????????????????????????????## | | ?????????????????????????###??????????????????## | | ?????????????????????????# #??????????????????# < | | ###########??????????????# #??????????????????# | | #"""""""""##?????????????# #??????????????????# | | " """ """"##????????????# #?????????????????## | | "" " #???????????? ##???????????????## | | " """#????????????# ????????????????# | | " "#???????????##;##???????????????# | | " "##?????????##"a #??????????????## | | ""###???????# @g #?????????????## # | | """#??????##"aaa##????????????# # | | "#????### a ###????????### ## | | ##???# ########## #? | | ##?## #""" ## ##? | | ### * ##? | | ## * #? | | #### ## | | ""#?#"""""#### # | | #"""##?#######??#### * | | ######??????????????##### | | ##???????????????????????### | | " ##??????????????????????????### | | """ ""#?????????????????????????????### | | " ""#" "##??????????????????????????????#" | | " """##"""""""##???????????????????????????????### | | ""????#########??????????????????????????????????? | | ?????????????????????????????????????????????????? | | ?????????????????????????????????????????????????? | | ?????????????????????????????????????????????????? | | ?????????????????????????????????????????????????? | | ?????????????????????????????????????????????????? | | ?????????????????????????????????????????????????? | | ?????????????????????????????????????????????????? | | ?????????????????????????????????????????????????? | +----------------------------------------------------+ Best States ------------- Heat Dissipation 39 Energy Generation 10 Energy Capacity 250 Matter Stores 288 Matter Capacity 300 Sight Range 16 Terrain Scan Density 10 Resistance: KI 20 Resistance: TH 20 Resistance: EX 20 Resistance: EM 20 Resistance: I 20 Resistance: S 20 Resistance: P 20 Evasion (%) 40 Offensive Hacking 10 Item Schematics ----------------- None Robot Schematics ------------------ None Fabricated ------------ Nothing Alien Tech Used ----------------- None Achievements -------------- None Challenges ------------ None RPGLIKE | -11 -10 -10 -10 --------- Run | Scr Mat Min Exi Levels Raised . | . . . . XP Earned 5350 | 4000 500 500 350 XP Spent 3850 | 3850 . . . Upgrades 7 | 7 . . . Propulsion Slot 2 | 2 . . . Utility Slot 2 | 2 . . . Weapon Slot 1 | 1 . . . Inventory Capacity 2 | 2 . . . Protomatter Created 94 | . 75 . 19 Integrity Restored 120 | . 106 14 . Core 87 | . 73 14 . Parts 33 | . 33 . . Protomatter Decayed 28 | . . 28 . Game ------ Seed RemoteHardcellRifle Manual? 0 Play Time 00:10:30 Cumulative 117.6 hours Start 2020.01.02 @ 14:12:55 End 2020.01.02 @ 14:22:21 Sessions 1 Manual Loads 0 Difficulty Adventurer Special Mode Winter2019/RPGLIKE Game No. 21 Rogue 0 Adventurer 21 Explorer 0 Win Type - Total 1 Types 1/0/0/0/0/0/0 Lore% 32 Gallery% 48 Achievement% 47 Wizard Run 0 Options --------- ASCII 0 Keyboard 0 Movement Mouse Keybinds 0 Fullscreen 2 Font 24/Proggy Map View 76x50 Tactical HUD 1 Map Filters NONE Filters NONE Steam 1 RUN: 5e25ee62-8699-471b-9dc8-61a300436222